bitfinex/quotes_SOLUSD_20240726
["timestamp","ask_amount","ask_price","bid_price","bid_amount"]
[1721958385127,5.755,173.77,173.72,15.7822]
[1721958386004,5.7544,173.78,173.72,15.7822]
[1721958386317,25.88,173.81,173.72,15.7822]
[1721958386318,5.7541,173.79,173.72,15.7822]
[1721958386524,5.7544,173.78,173.72,15.7822]
[1721958386708,5.7549,173.77,173.72,15.7822]
[1721958386913,5.7551,173.76,173.72,15.7822]
[1721958387213,25.88,173.75,173.67,22.6835]
[1721958387425,25.88,173.75,173.68,5.7573]
[1721958387728,45.0,173.74,173.68,5.7573]
[1721958389106,5.756,173.73,173.68,5.7573]
[1721958390328,45.0,173.72,173.63,22.605]
[1721958390503,5.7567,173.71,173.66,5.758]
[1721958390928,5.7567,173.71,173.63,22.605]
[1721958390929,5.7553,173.76,173.71,5.7565]
[1721958391127,29.05,173.77,173.63,22.605]
[1721958391325,29.05,173.77,173.64,20.0]
[1721958391716,5.7557,173.74,173.69,5.7571]
[1721958391919,5.7557,173.74,173.64,20.0]
[1721958391920,5.7552,173.76,173.64,21.1514781]
[1721958392101,5.7552,173.76,173.65,45.0]
[1721958392303,29.05,173.77,173.73,5.7559]
[1721958392520,5.7546,173.78,173.73,5.7559]
[1721958392829,29.05,173.81,173.74,5.7555]
[1721958393012,5.7544,173.78,173.73,5.756]
[1721958393326,45.0,173.77,173.73,5.756]
[1721958393529,50.7549,173.77,173.72,5.7563]
[1721958393908,5.7543,173.79,173.73,5.756]
[1721958394409,43.4341,173.81,173.7,5.7567]
[1721958394612,43.4341,173.81,173.71,20.0]
[1721958394797,43.4341,173.81,173.65,45.0]
[1721958394798,14.3857,173.79,173.65,45.0]
[1721958395002,29.05,173.81,173.66,20.0]
[1721958395229,29.05,173.81,173.73,5.7557]
[1721958395432,5.7553,173.76,173.67,1.15128549]
[1721958395727,5.7553,173.76,173.66,20.0]
[1721958395728,45.0,173.8,173.65,20.0]
[1721958396028,45.0,173.8,173.66,1.15133187]
[1721958397047,5.7551,173.76,173.71,5.7566]
[1721958397534,5.7554,173.75,173.7,5.7569]
[1721958397823,45.0,173.8,173.51,20.0]
[1721958397824,5.7557,173.74,173.69,5.7573]
[1721958398204,5.7557,173.74,173.7,5.757]
[1721958398610,5.756,173.73,173.69,5.7573]
[1721958398807,5.756,173.73,173.68,5.7576]
[1721958399615,5.7563,173.72,173.68,5.7576]
[1721958399935,5.7567,173.71,173.67,5.7579]
[1721958400530,49.05,173.77,173.67,5.7579]
[1721958400832,45.0,173.76,173.67,5.7579]
[1721958401034,45.0,173.76,173.63,22.605]
[1721958401222,5.756,173.74,173.69,5.7571]
[1721958401422,5.756,173.74,173.63,22.605]
[1721958401626,5.7565,173.72,173.68,5.7576]
[1721958401806,5.7559,173.74,173.69,5.7573]
[1721958402439,5.756,173.73,173.69,5.7573]
[1721958402620,5.756,173.73,173.67,5.7577]
[1721958403110,5.7565,173.72,173.67,5.7577]
[1721958403519,5.7565,173.72,173.68,5.7575]
[1721958403941,5.7558,173.74,173.69,5.7572]
[1721958404113,5.7557,173.74,173.69,5.7572]
[1721958404848,5.7557,173.74,173.63,22.605]
[1721958404849,45.0,173.76,173.68,5.7577]
[1721958405014,5.7561,173.73,173.68,5.7577]
[1721958405815,5.7565,173.72,173.67,5.7579]
[1721958406520,5.7567,173.71,173.67,5.7579]
[1721958406731,5.7564,173.72,173.68,5.7576]
[1721958407641,5.7561,173.73,173.68,5.7576]
[1721958407820,5.7561,173.73,173.63,22.605]
[1721958407821,5.7561,173.73,173.69,5.7573]
[1721958408137,5.7555,173.75,173.71,5.7567]
[1721958408351,70.83,173.74,173.7,5.757]
[1721958409014,76.5857,173.74,173.7,5.757]
[1721958409417,5.7561,173.73,173.69,5.7572]
[1721958409749,5.7561,173.73,173.68,5.7576]
[1721958410228,5.7561,173.73,173.69,5.7572]
[1721958410745,5.7561,173.73,173.68,5.7576]
[1721958410942,5.7565,173.72,173.68,5.7576]
[1721958411152,25.83,173.71,173.63,22.605]
[1721958411356,5.7574,173.69,173.64,5.7587]
[1721958411649,50.7573,173.7,173.63,22.605]
[1721958411950,50.7573,173.7,173.65,5.7586]
[1721958411951,50.7571,173.7,173.65,5.7586]
[1721958412128,50.7571,173.7,173.66,5.7582]
[1721958412328,50.7571,173.7,173.65,5.7586]
[1721958413334,25.83,173.68,173.59,22.6774]
[1721958413525,70.83,173.7,173.61,5.76]
[1721958413526,31.5887,173.65,173.61,5.76]
[1721958413733,25.83,173.65,173.61,5.76]
[1721958414142,25.83,173.65,173.59,22.6774]
[1721958414346,31.5888,173.65,173.59,22.6774]
[1721958414555,31.5888,173.65,173.61,5.7599]
[1721958414754,25.83,173.65,173.61,5.7599]
[1721958415239,25.83,173.65,173.64,5.759]
[1721958415441,25.83,173.65,173.63,5.7593]
[1721958416745,25.83,173.65,173.59,22.6774]
[1721958416957,5.7581,173.67,173.62,5.7596]
[1721958417127,5.7584,173.66,173.62,5.7596]
[1721958417839,5.7581,173.67,173.62,5.7596]
[1721958419255,5.7584,173.66,173.62,5.7596]
[1721958419845,5.7581,173.67,173.62,5.7596]
[1721958420752,5.7588,173.65,173.61,5.7599]
[1721958421055,5.7588,173.65,173.59,22.6774]
[1721958421056,5.7588,173.65,173.6,5.7603]
[1721958421352,25.83,173.68,173.61,5.7599]
[1721958421565,5.758,173.67,173.59,22.6774]
[1721958421857,5.758,173.67,173.6,20.0]
[1721958422055,5.759,173.64,173.59,28.438]
[1721958422249,5.759,173.64,173.59,22.6774]
[1721958422836,5.759,173.64,173.59,16.4582]
[1721958423035,5.759,173.64,173.59,5.7605]
[1721958423739,5.759,173.64,173.6,5.7602]
[1721958423935,31.5887,173.65,173.6,5.7602]
[1721958424252,45.0,173.64,173.6,5.7602]
[1721958424454,50.759,173.64,173.6,5.7602]
[1721958425337,45.0,173.64,173.61,5.7599]
[1721958427352,45.0,173.64,173.6,5.7602]
[1721958427755,45.0,173.64,173.61,5.7599]
[1721958429746,5.7582,173.67,173.63,5.7592]
[1721958429962,31.5878,173.68,173.64,5.759]
[1721958430261,25.83,173.68,173.55,17.59939449]
[1721958430469,31.5867,173.71,173.67,5.758]
[1721958430639,31.5867,173.71,173.63,15.5236]
[1721958430640,31.5867,173.71,173.66,5.7582]
[1721958430842,5.757,173.7,173.66,5.7582]
[1721958431365,5.757,173.7,173.65,5.7586]
[1721958431862,5.7574,173.69,173.64,5.7589]
[1721958432969,25.83,173.71,173.67,5.7579]
[1721958433140,25.83,173.71,173.68,5.7576]
[1721958433763,25.83,173.71,173.69,5.7572]
[1721958433970,25.83,173.74,173.69,5.757]
[1721958434171,25.83,173.74,173.68,5.7576]
[1721958434564,5.7564,173.72,173.67,5.7579]
[1721958435155,5.7564,173.72,173.68,5.7577]
[1721958435549,5.7576,173.69,173.64,12.2878]
[1721958435875,5.7574,173.69,173.64,5.759]
[1721958436073,25.83,173.68,173.6,11.8489]
[1721958436389,5.7584,173.66,173.61,5.7597]
[1721958436951,5.7584,173.66,173.62,5.7595]
[1721958437366,50.758,173.67,173.63,5.7593]
[1721958437571,25.83,173.68,173.64,5.7589]
[1721958437969,25.83,173.68,173.65,5.7586]
[1721958438586,16.0931,173.71,173.67,5.7579]
[1721958438587,25.83,173.71,173.67,5.7579]
[1721958438963,31.5867,173.71,173.67,5.7579]
[1721958440248,31.5857,173.74,173.7,5.757]
[1721958441270,25.83,173.74,173.67,5.758]
[1721958441664,25.83,173.74,173.63,6.4549]
[1721958441856,25.83,173.74,173.66,5.7581]
[1721958441857,5.7567,173.71,173.66,5.7581]
[1721958442253,5.7564,173.72,173.67,5.7579]
[1721958442863,5.756,173.73,173.68,5.7575]
[1721958443583,5.7564,173.72,173.68,5.7575]
[1721958444576,5.7561,173.73,173.68,5.7575]
[1721958445660,31.5858,173.74,173.64,1.1515101]
[1721958446003,31.5849,173.77,173.72,5.7562]
[1721958446976,5.7551,173.76,173.72,5.7562]
[1721958447156,5.7551,173.76,173.71,5.7566]
[1721958447353,5.7554,173.75,173.71,5.7566]
[1721958447755,5.7557,173.74,173.66,15.0509]
[1721958447982,5.7557,173.74,173.69,5.757]
[1721958448481,5.7557,173.74,173.66,15.0509]
[1721958448681,5.7557,173.74,173.67,20.0]
[1721958448985,5.7554,173.75,173.67,20.0]
[1721958449361,5.7554,173.75,173.71,5.7566]
[1721958450195,5.7551,173.76,173.71,5.7566]
[1721958450762,5.7555,173.75,173.71,5.7566]
[1721958450989,5.7557,173.74,173.69,5.7571]
[1721958451595,5.7562,173.73,173.67,20.0]
[1721958452263,5.7562,173.73,173.68,5.7576]
[1721958452461,5.7562,173.73,173.69,5.7573]
[1721958452665,5.7564,173.72,173.68,5.7576]
[1721958452968,5.7567,173.71,173.67,5.7579]
[1721958453173,31.5867,173.71,173.67,5.7579]
[1721958453879,25.83,173.71,173.67,5.7579]
[1721958454580,31.5868,173.71,173.67,5.7579]
[1721958454782,31.5868,173.71,173.66,5.7582]
[1721958454988,5.7571,173.7,173.66,5.7582]
[1721958455287,5.7574,173.69,173.64,5.7589]
[1721958455583,5.7586,173.66,173.59,6.3867]
[1721958455786,5.7586,173.66,173.61,5.7599]
[1721958455994,5.7581,173.67,173.57,15.6038]
[1721958456284,25.83,173.68,173.58,1.15184151]
[1721958456485,35.1235,173.75,173.67,5.758]
[1721958456486,25.83,173.71,173.67,5.758]
[1721958456787,31.5867,173.71,173.66,5.7583]
[1721958456966,5.757,173.7,173.66,5.7583]
[1721958457161,5.757,173.7,173.58,1.15184151]
[1721958457364,5.757,173.7,173.58,65.0]
[1721958457578,5.757,173.7,173.58,66.1517415]
[1721958459273,5.757,173.7,173.65,5.7584]
[1721958459473,5.757,173.7,173.66,5.7582]
[1721958459783,25.83,173.71,173.69,5.7571]
[1721958460089,5.756,173.73,173.68,5.7576]
[1721958460268,45.0,173.72,173.68,5.7576]
[1721958460471,5.7564,173.72,173.67,5.758]
[1721958461083,32.1344,173.74,173.66,5.7583]
[1721958461274,25.83,173.71,173.65,5.7586]
[1721958461465,5.757,173.7,173.65,5.7586]
[1721958461883,31.5867,173.71,173.66,5.7583]
[1721958462087,45.0,173.7,173.66,5.7583]
[1721958462283,50.7571,173.7,173.66,5.7583]
[1721958462674,50.7571,173.7,173.65,5.7586]
[1721958462871,50.7571,173.7,173.66,5.7583]
[1721958463071,45.0,173.7,173.66,5.7583]
[1721958464989,50.757,173.7,173.66,5.7583]
[1721958465502,25.83,173.71,173.67,5.758]
[1721958466168,25.83,173.71,173.68,5.7577]
[1721958467700,25.83,173.77,173.72,5.756]
[1721958467880,25.83,173.77,173.73,5.7558]
[1721958468601,31.584,173.8,173.76,5.755]
[1721958468988,31.584,173.8,173.75,5.7553]
[1721958469190,5.7541,173.79,173.75,5.7553]
[1721958469493,31.5837,173.8,173.75,5.7553]
[1721958469701,5.7541,173.79,173.75,5.7553]
[1721958469899,5.7541,173.79,173.74,5.7556]
[1721958470074,5.7544,173.78,173.74,5.7556]
[1721958470274,25.83,173.8,173.74,5.7556]
[1721958470491,50.7542,173.79,173.74,5.7556]
[1721958470805,5.7544,173.78,173.73,5.7559]
[1721958471391,5.7544,173.78,173.74,5.7556]
[1721958471600,50.754,173.79,173.74,5.7556]
[1721958471900,50.754,173.79,173.75,5.7553]
[1721958472272,50.754,173.79,173.74,5.7556]
[1721958474693,50.754,173.79,173.75,5.7553]
[1721958474880,25.83,173.8,173.71,1.15111248]
[1721958475081,25.83,173.8,173.71,21.15111248]
[1721958475380,25.83,173.8,173.78,5.7543]
[1721958477183,25.83,173.8,173.71,21.15091693]
[1721958477378,25.83,173.8,173.71,20.0]
[1721958477779,25.83,173.8,173.71,21.15095779]
[1721958477983,41.7939,173.84,173.71,21.1510128]
[1721958478299,25.83,173.84,173.73,15.5487]
[1721958478522,25.83,173.84,173.74,21.15073527]
[1721958479292,31.5824,173.84,173.74,21.15073527]
[1721958479690,31.5826,173.84,173.74,20.0]
[1721958480295,25.83,173.84,173.75,1.15077087]
[1721958480493,25.83,173.84,173.74,21.15077004]
[1721958480700,31.5825,173.84,173.74,21.15077004]
[1721958480893,5.7528,173.83,173.74,20.0]
[1721958481210,31.5824,173.84,173.74,21.1507984]
[1721958481611,5.7521,173.85,173.74,21.1507984]
[1721958481789,25.83,173.9,173.76,6.4023]
[1721958481984,25.83,173.9,173.77,82.41451026]
[1721958482818,31.5805,173.9,173.77,82.41451026]
[1721958484129,25.83,173.9,173.77,82.41451026]
[1721958484428,31.5805,173.9,173.78,1.15050054]
[1721958485297,25.83,173.9,173.78,1.15050054]
[1721958485898,31.5805,173.9,173.78,1.15050054]
[1721958486119,25.83,173.9,173.78,1.15050054]
[1721958486301,25.83,173.9,173.77,36.2641]
[1721958486302,45.0,173.89,173.77,36.2641]
[1721958486617,5.7514,173.87,173.77,36.2641]
[1721958486805,5.7511,173.88,173.77,36.2641]
[1721958487003,5.7508,173.89,173.77,37.41459337]
[1721958487614,31.5805,173.9,173.78,45.0]
[1721958487799,31.5805,173.9,173.79,20.0]
[1721958488411,5.7509,173.89,173.8,1.15042139]
[1721958488617,5.7509,173.89,173.79,20.0]
[1721958489130,5.7511,173.88,173.79,20.0]
[1721958489419,5.7515,173.87,173.79,20.0]
[1721958489630,25.83,173.87,173.78,20.0]
[1721958489919,31.5814,173.87,173.78,20.0]
[1721958490221,25.83,173.87,173.78,21.1505483]
[1721958490895,25.83,173.87,173.78,20.0]
[1721958491604,5.7517,173.86,173.78,20.0]
[1721958492303,5.7522,173.85,173.77,16.2641]
[1721958492502,54.3766,173.9,173.77,16.2641]
[1721958492503,25.83,173.84,173.77,16.2641]
[1721958492697,31.5814,173.87,173.77,16.2641]
[1721958492910,25.83,173.87,173.78,1.15057177]
[1721958493522,31.5805,173.9,173.78,1.15057177]
[1721958493724,31.5805,173.9,173.78,46.15057177]
[1721958494026,31.5805,173.9,173.78,66.15057177]
[1721958495729,5.7508,173.89,173.78,66.15057177]
[1721958496126,25.83,173.9,173.78,66.15057177]
[1721958496127,5.7511,173.88,173.78,66.15057177]
[1721958496933,5.7515,173.87,173.78,20.0]
[1721958497137,5.7511,173.88,173.78,20.0]
[1721958497328,25.83,173.9,173.78,20.0]
[1721958497329,5.7508,173.89,173.79,1.15053992]
[1721958497514,5.7508,173.89,173.78,20.0]
[1721958497715,45.0,173.88,173.78,20.0]
[1721958497930,5.7519,173.86,173.78,20.0]
[1721958498240,12.89,173.82,173.78,20.0]
[1721958499031,12.89,173.83,173.78,20.0]
[1721958500229,5.7511,173.88,173.78,20.0]
[1721958500433,31.5311,173.88,173.78,20.0]
[1721958500732,25.78,173.88,173.78,20.0]
[1721958500936,5.7517,173.86,173.78,20.0]
[1721958501134,5.7514,173.87,173.78,20.0]
[1721958501324,31.5311,173.88,173.79,1.15055889]
[1721958501538,31.5311,173.88,173.8,1.15053836]
[1721958502044,25.78,173.88,173.79,1.1505401]
[1721958502218,25.78,173.88,173.8,1.15043309]
[1721958502419,31.5303,173.91,173.8,1.15043309]
[1721958502611,50.7505,173.9,173.8,1.15043309]
[1721958503343,25.78,173.91,173.8,1.15043309]
[1721958503519,25.78,173.93,173.82,6.4359]
[1721958503721,25.78,173.93,173.83,21.15017554]
[1721958503943,31.5295,173.93,173.83,21.15017554]
[1721958505440,20.8160325,174.0,173.84,22.6078]
[1721958505441,0.8160325,174.0,173.84,22.6078]
[1721958505654,32.3433325,174.0,173.86,16.3353]
[1721958505819,26.5960325,174.0,173.87,66.14986445]
[1721958506237,5.7478,173.98,173.87,66.14986445]
[1721958507616,5.7475,173.99,173.88,6.1587]
[1721958507817,5.7475,173.99,173.89,20.0]
[1721958508226,26.5960325,174.0,173.9,16.20263583]
[1721958508518,0.8160325,174.0,173.9,16.20263583]
[1721958508718,0.8160325,174.0,173.91,65.0]
[1721958508912,0.8160325,174.0,173.93,6.1587]
[1721958509114,0.8160325,174.0,173.94,21.14945536]
[1721958509850,0.8160325,174.0,173.95,15.0529]
[1721958510156,0.8160325,174.0,173.96,21.1494091]
[1721958511644,0.8160325,174.0,173.96,1.1494091]
[1721958511856,0.8160325,174.0,173.95,15.0529]
[1721958511857,26.5960325,174.0,173.95,15.0529]
[1721958512757,26.5960325,174.0,173.93,6.1587]
[1721958513251,5.7478,173.98,173.93,6.1587]
[1721958513447,5.7475,173.99,173.93,6.1587]
[1721958513832,26.5960325,174.0,173.93,6.1587]
[1721958514036,32.3431325,174.0,173.93,6.1587]
[1721958514225,26.5960325,174.0,173.91,16.4135]
[1721958514433,45.0,173.99,173.91,16.4135]
[1721958515434,5.7478,173.98,173.91,16.4135]
[1721958515630,26.5960325,174.0,173.91,16.4135]
[1721958515941,5.7481,173.97,173.91,16.4135]
[1721958516629,5.7477,173.98,173.91,16.4135]
[1721958517148,0.8160325,174.0,173.91,16.4135]
[1721958517338,0.8160325,174.0,173.92,20.0]
[1721958519858,0.8160325,174.0,173.92,21.14961335]
[1721958520163,0.8160325,174.0,173.92,20.0]
[1721958520454,0.8160325,174.0,173.93,1.14953415]
[1721958521361,0.8160325,174.0,173.93,45.0]
[1721958521539,0.8160325,174.0,173.94,20.0]
[1721958521858,0.8160325,174.0,173.92,20.0]
[1721958525061,0.8160325,174.0,173.93,1.14950423]
[1721958525261,0.8160325,174.0,173.93,46.14950423]
[1721958525445,0.8160325,174.0,173.95,6.6544]
[1721958525656,0.8160325,174.0,173.96,21.14932244]
[1721958526244,0.8160325,174.0,173.97,15.0096]
[1721958526459,0.8160325,174.0,173.98,21.14933692]
[1721958526761,0.8160325,174.0,173.99,1.14921172]
[1721958527636,0.8160325,174.0,173.99,45.0]
[1721958527951,0.8160325,174.0,173.99,65.0]
[1721958529868,0.8160325,174.0,173.99,66.1490678]
[1721958530379,25.78,174.1,173.99,66.1490678]
[1721958530550,25.78,174.1,174.0,20.0]
[1721958530870,5.7431,174.12,174.01,46.14888573]
[1721958531036,5.7431,174.12,174.02,21.14888976]
[1721958531242,5.7431,174.12,174.02,27.70418976]
[1721958531444,5.7431,174.12,174.03,45.0]
[1721958531650,5.7431,174.12,174.02,27.70418976]
[1721958531651,5.7439,174.1,174.02,26.5553]
[1721958531863,0.8160325,174.17,174.03,16.5525]
[1721958532166,0.8160325,174.17,174.04,20.0]
[1721958532167,5.7429,174.13,174.04,20.0]
[1721958532467,5.2432,174.12,174.04,20.0]
[1721958533740,5.7435,174.11,174.04,20.0]
[1721958533941,5.7425,174.14,174.05,45.0]
[1721958534246,5.7428,174.13,174.04,20.0]
[1721958534665,5.7432,174.12,174.04,20.0]
[1721958538154,12.86,174.07,174.04,20.0]
[1721958539078,12.86,174.08,174.04,20.0]
[1721958540147,12.86,174.09,174.04,20.0]
[1721958540650,12.86,174.1,174.04,20.0]
[1721958540850,12.86,174.1,174.05,57.86]
[1721958541045,12.86,174.1,174.04,21.14872603]
[1721958541256,12.86,174.09,174.04,20.0]
[1721958541476,12.86,174.08,174.04,20.0]
[1721958541847,0.8160325,174.17,174.07,12.86]
[1721958542049,13.6760325,174.17,174.12,12.86]
[1721958542252,0.8160325,174.17,174.13,34.0082955]
[1721958542571,0.8160325,174.17,174.14,12.86]
[1721958543079,0.8160325,174.17,174.15,21.1481714]
[1721958544677,0.8160325,174.17,174.15,1.1481714]
[1721958544976,0.8160325,174.17,174.15,21.1481714]
[1721958546763,0.8160325,174.17,174.15,1.1481714]
[1721958546962,0.8160325,174.17,174.12,16.1924]
[1721958547187,0.8160325,174.17,174.13,20.0]
[1721958547365,0.8160325,174.17,174.12,16.1924]
[1721958547866,0.8160325,174.17,174.1,6.2196]
[1721958548072,6.5576325,174.17,174.07,15.5658]
[1721958548368,0.8160325,174.17,174.07,15.5658]
[1721958548879,0.8160325,174.17,174.08,1.1484707]
[1721958549059,0.8160325,174.17,174.08,21.1484707]
[1721958549266,0.8160325,174.17,174.09,45.0]
[1721958549466,0.8160325,174.17,174.1,20.0]
[1721958549877,0.8160325,174.17,174.07,15.5658]
[1721958550179,0.8160325,174.17,174.08,45.0]
[1721958550779,5.7421,174.16,174.08,45.0]
[1721958550963,6.5575325,174.17,174.08,45.0]
[1721958551277,6.5576325,174.17,174.09,20.0]
[1721958551488,0.8160325,174.17,174.09,1.14854393]
[1721958552483,0.8160325,174.17,174.09,46.14854393]
[1721958552778,0.8160325,174.17,174.1,20.0]
[1721958553383,6.5575325,174.17,174.1,20.0]
[1721958553564,6.5575325,174.17,174.08,20.0]
[1721958554482,6.5575325,174.17,174.08,21.14850026]
[1721958554669,0.8160325,174.17,174.08,21.14850026]
[1721958555074,0.8160325,174.17,174.08,20.0]
[1721958555475,6.5576325,174.17,174.08,20.0]
[1721958555663,0.8160325,174.17,174.08,20.0]
[1721958556060,5.7419,174.16,174.08,20.0]
[1721958556671,0.8160325,174.17,174.08,20.0]
[1721958556877,5.7424,174.15,174.08,20.0]
[1721958557187,5.7419,174.16,174.08,20.0]
[1721958557697,5.7422,174.15,174.08,20.0]
[1721958558294,5.7434,174.12,174.03,15.2813]
[1721958558681,5.7438,174.11,174.01,6.3432]
[1721958559187,5.7439,174.1,174.01,6.3432]
[1721958559498,5.7438,174.1,174.01,6.3432]
[1721958559869,40.0381,174.12,173.99,15.8644]
[1721958560068,45.0,174.11,173.99,15.8644]
[1721958560261,5.7444,174.09,173.99,15.8644]
[1721958560463,5.7447,174.08,173.99,15.8644]
[1721958561272,5.7448,174.07,173.99,15.8644]
[1721958561488,5.7448,174.07,173.96,10.09202566]
[1721958561989,5.7445,174.08,173.96,10.09202566]
[1721958562186,31.4242,174.09,173.96,10.09202566]
[1721958562570,31.4242,174.09,173.97,65.0]
[1721958562773,5.7445,174.08,173.97,65.0]
[1721958562983,6.4535,174.05,173.91,22.2004]
[1721958563299,5.746,174.04,173.91,22.2004]
[1721958563480,50.746,174.04,173.92,1.14954134]
[1721958563684,50.746,174.04,173.91,23.3499184]
[1721958564199,5.7462,174.03,173.91,23.3499184]
[1721958564706,5.7458,174.04,173.92,65.0]
[1721958564882,5.7461,174.03,173.93,1.14946997]
[1721958565080,6.4535,174.05,173.93,1.14946997]
[1721958565290,6.4535,174.05,173.92,65.0]
[1721958565291,45.0,174.04,173.92,65.0]
[1721958565671,45.0,174.04,173.92,20.0]
[1721958565887,5.7471,174.0,173.92,20.0]
[1721958566109,5.7468,174.01,173.92,20.0]
[1721958566695,25.68,174.03,173.92,20.0]
[1721958566696,5.7472,174.0,173.92,20.0]
[1721958567001,5.7477,173.99,173.91,15.7431]
[1721958567694,5.7477,173.99,173.89,1.00152071]
[1721958567695,45.0,173.98,173.89,1.00152071]
[1721958567873,5.7482,173.97,173.89,1.00152071]
[1721958568500,50.7478,173.98,173.89,1.00152071]
[1721958568876,20.7484,173.99,173.89,1.00152071]
[1721958569490,5.7467,174.02,173.89,1.00152071]
[1721958569802,5.7471,174.0,173.89,1.00152071]
[1721958569987,42.0145,174.03,173.89,1.00152071]
[1721958569988,5.7478,173.98,173.89,1.00152071]
[1721958570500,5.7475,173.99,173.89,1.00152071]
[1721958570894,45.0,173.98,173.89,1.00152071]
[1721958572192,25.68,174.0,173.89,1.00152071]
[1721958572193,45.0,173.99,173.89,1.00152071]
[1721958572678,5.7482,173.97,173.89,1.00152071]
[1721958575218,45.0,173.99,173.89,1.00152071]
[1721958575506,50.7475,173.99,173.89,1.00152071]
[1721958575885,5.7478,173.98,173.89,1.00152071]
[1721958576110,5.7478,173.98,173.9,1.14992682]
[1721958576614,5.7478,173.98,173.89,1.00152071]
[1721958577120,25.68,174.0,173.9,1.14988546]
[1721958577291,50.7477,173.99,173.89,1.00152071]
[1721958577613,45.0,174.02,173.89,1.00152071]
[1721958577992,5.7481,173.97,173.89,1.00152071]
[1721958578515,25.68,174.0,173.89,1.00152071]
[1721958578516,5.7478,173.98,173.89,1.00152071]
[1721958579492,25.68,174.0,173.89,1.00152071]
[1721958579692,5.7484,173.96,173.89,1.00152071]
[1721958579913,5.7487,173.95,173.89,1.00152071]
[1721958580305,45.0,173.94,173.89,1.00152071]
[1721958580612,5.7496,173.93,173.85,15.2448]
[1721958580817,45.0,173.94,173.87,1.00180615]
[1721958581006,50.7488,173.95,173.87,1.00180615]
[1721958581520,5.7491,173.94,173.87,1.00180615]
[1721958582904,50.7496,173.93,173.87,1.00180615]
[1721958584400,45.0,173.93,173.87,1.00180615]
[1721958584614,45.0,173.93,173.79,16.6602]
[1721958584615,5.7507,173.89,173.79,16.6602]
[1721958584811,5.7507,173.89,173.81,1.00210533]
[1721958585540,5.7517,173.86,173.81,1.00210533]
[1721958585836,6.0379,173.84,173.7,16.6602]
[1721958586040,6.0379,173.84,173.75,1.00227143]
[1721958586350,5.7531,173.82,173.7,16.6602]
[1721958586520,5.7534,173.81,173.74,1.00206277]
[1721958586840,5.7534,173.81,173.77,5.7546]
[1721958587223,5.7531,173.82,173.77,5.7546]
[1721958587619,5.7543,173.79,173.74,1.00226387]
[1721958587945,5.7537,173.81,173.76,5.7548]
[1721958589234,5.7531,173.82,173.77,5.7546]
[1721958589442,45.0,173.81,173.77,5.7546]
[1721958589822,50.7534,173.81,173.77,5.7546]
[1721958590042,45.0,173.81,173.77,5.7546]
[1721958590451,25.68,173.85,173.71,1.15102868]
[1721958590621,6.6293,173.86,173.71,66.15102868]
[1721958590820,45.0,173.85,173.71,66.15102868]
[1721958591029,5.7527,173.84,173.79,5.754]
[1721958591223,50.7527,173.83,173.78,5.7543]
[1721958591441,5.7534,173.81,173.76,5.755]
[1721958592143,5.7531,173.82,173.77,5.7546]
[1721958592323,45.0,173.85,173.78,5.7541]
[1721958593251,5.7528,173.83,173.78,5.7541]
[1721958593544,5.7538,173.8,173.75,5.755]
[1721958593756,45.0,173.85,173.76,5.7548]